fUSD/lending_fUSD_20250708
["ID","MTS","AMOUNT","RATE_DAILY","PERIOD"]
[370307362,1751945459083,-460.0,0.00030684,7]
[370307363,1751945459095,-460.0,0.00030684,7]
[370307364,1751945459104,-460.0,0.00030684,7]
[370307365,1751945459113,-151.0,0.00030684,7]
[370307366,1751945459122,-300.0,0.00030684,2]
[370307367,1751945459131,-460.0,0.00030684,7]
[370307368,1751945459140,-460.0,0.00030684,7]
[370307369,1751945459151,-537.54,0.00030684,7]
[370307370,1751945459160,-460.0,0.00030684,7]
[370307371,1751945459170,-1765.96,0.00030684,7]
[370307372,1751945459179,-582.27,0.00030684,7]
[370307373,1751945459188,-670.26,0.00030684,7]
[370307374,1751945459198,-460.0,0.00030684,7]
[370307375,1751945459207,-2782.51,0.00030684,7]
[370307376,1751945459216,-460.0,0.00030684,7]
[370307377,1751945459226,-1053.55,0.00030684,7]
[370307378,1751945459235,-520.3,0.00030684,7]
[370307379,1751945459245,-151.0,0.00030684,7]
[370307380,1751945459256,-460.0,0.00030684,7]
[370307381,1751945459271,-525.46,0.00030684,7]
[370307382,1751945459280,-460.0,0.00030684,7]
[370307383,1751945459289,-460.0,0.00030684,7]
[370307384,1751945459298,-460.0,0.00030684,7]
[370307385,1751945459307,-460.0,0.00030684,7]
[370307386,1751945459316,-460.0,0.00030684,7]
[370307387,1751945459326,-729.53,0.00030684,7]
[370307388,1751945459335,-460.0,0.00030684,7]
[370307389,1751945459344,-460.0,0.00030684,7]
[370307390,1751945459354,-460.0,0.00030684,7]
[370307391,1751945459363,-460.0,0.00030684,7]
[370307392,1751945459373,-151.0,0.00030684,7]
[370307393,1751945459383,-471.33,0.00030684,7]
[370307394,1751945459392,-460.0,0.00030684,7]
[370307395,1751945459401,-1450.96,0.00030684,7]
[370307396,1751945459411,-470.13,0.00030684,7]
[370307397,1751945459419,-179.739837,0.00030684,7]
[370307398,1751945459428,-460.0,0.00030684,7]
[370307399,1751945459438,-460.0,0.00030684,7]
[370307400,1751945459447,-460.0,0.00030684,7]
[370307401,1751945459456,-835.22,0.00030684,7]
[370307402,1751945459465,-542.73,0.00030684,7]
[370307403,1751945459474,-460.0,0.00030684,7]
[370307404,1751945459484,-729.25,0.00030684,7]
[370307405,1751945459493,-550.0,0.00030684,7]
[370307406,1751945459502,-1812.69,0.00030684,7]
[370307407,1751945459512,-460.0,0.00030684,7]
[370307408,1751945459521,-460.0,0.00030684,7]
[370307409,1751945459531,-1585.14,0.00030684,7]
[370307410,1751945459541,-151.0,0.00030684,7]
[370307411,1751945459552,-460.0,0.00030684,7]
[370307412,1751945459561,-460.0,0.00030684,7]
[370307413,1751945459570,-888.83,0.00030684,7]
[370307414,1751945459579,-708.52,0.00030684,7]
[370307415,1751945459589,-875.39,0.00030684,7]
[370307416,1751945459598,-569.59,0.00030684,7]
[370307417,1751945459607,-499.99,0.00030684,7]
[370307418,1751945459617,-460.0,0.00030684,7]
[370307419,1751945459626,-460.0,0.00030684,7]
[370307420,1751945459635,-460.0,0.00030684,7]
[370307421,1751945459645,-460.0,0.00030684,7]
[370307422,1751945459655,-460.0,0.00030684,7]
[370307423,1751945459664,-495.30441204,0.00030684,7]
[370307424,1751945459674,-1599.48,0.00030684,7]
[370307425,1751945459684,-460.0,0.00030684,7]
[370307426,1751945459693,-518.65,0.00030684,7]
[370307427,1751945459703,-460.0,0.00030684,7]
[370307428,1751945459712,-367.42046199,0.00030684,7]
[370307429,1751945459723,-460.0,0.00030684,7]
[370307430,1751945459732,-460.0,0.00030684,7]
[370307431,1751945459742,-460.0,0.00030684,7]
[370307432,1751945459752,-793.44,0.00030684,7]
[370307433,1751945459761,-853.99,0.00030684,7]
[370307434,1751945459771,-460.0,0.00030684,7]
[370307435,1751945459781,-1137.76,0.00030684,7]
[370307436,1751945459791,-874.77,0.00030684,7]
[370307437,1751945459802,-151.0,0.00030684,7]
[370307438,1751945459811,-735.65,0.00030684,7]
[370307439,1751945459821,-881.67,0.00030684,7]
[370307440,1751945459830,-659.26,0.00030684,7]
[370307441,1751945459839,-460.0,0.00030684,7]
[370307442,1751945459849,-888.84,0.00030684,7]
[370307443,1751945459858,-555.14918259,0.00030684,7]
[370307444,1751945459867,-460.0,0.00030684,7]
[370307445,1751945459877,-1148.88,0.00030684,7]
[370307446,1751945459886,-460.0,0.00030684,7]
[370307447,1751945459896,-158.48847,0.00030684,7]
[370307448,1751945459905,-473.34,0.00030684,7]
[370307449,1751945459914,-460.0,0.00030684,7]
[370307450,1751945459924,-460.0,0.00030684,7]
[370307451,1751945459933,-604.41,0.00030684,7]
[370307452,1751945459942,-3273.32,0.00030684,7]
[370307453,1751945459951,-151.0,0.00030684,7]
[370307454,1751945459961,-151.0,0.00030684,7]
[370307455,1751945459971,-460.0,0.00030684,7]
[370307456,1751945459980,-158.48847,0.00030684,7]
[370307457,1751945459990,-460.0,0.00030684,7]
[370307458,1751945459999,-460.0,0.00030684,7]
[370307459,1751945460009,-460.0,0.00030684,7]
[370307460,1751945460018,-460.0,0.00030684,7]
[370307461,1751945460027,-600.23,0.00030684,7]
[370307462,1751945460037,-737.61,0.00030684,7]
[370307463,1751945460046,-7040.43,0.00030684,7]
[370307464,1751945460056,-460.0,0.00030684,7]
[370307465,1751945460066,-1590.72,0.00030684,7]
[370307466,1751945460076,-607.73,0.00030684,7]
[370307467,1751945460085,-460.0,0.00030684,7]
[370307468,1751945460095,-242554.71089027,0.00030684,2]
[370307469,1751945460105,-311.1,0.00030748,2]
[370307470,1751945460115,-215.0738,0.00030748,2]
[370307471,1751945460126,-2538.72933197,0.00030767,2]
[370307472,1751945460137,-151.0,0.00030815,7]
[370307473,1751945460147,-154.840991,0.00030815,7]
[370307474,1751945460161,-208.40227,0.00030815,7]
[370307475,1751945460171,-238.28630318,0.00030845,2]
[370307476,1751945460181,-151.0,0.00030845,7]
[370307477,1751945460191,-151.0,0.00030845,7]
[370307478,1751945460203,-151.0,0.00030845,7]
[370307479,1751945460217,-151.0,0.00030845,7]
[370307480,1751945460228,-2195.0,0.00030845,5]
[370307481,1751945460238,-509.0,0.00030866,7]
[370307482,1751945460248,-933.806,0.00030892,27]
[370307483,1751945460260,-3100.0,0.000309,11]
[370307484,1751945460270,-172.0,0.00030912,7]
[370307485,1751945460280,-2004.68458164,0.00030913,2]
[370307486,1751945460289,-460.0,0.00030957,7]
[370307487,1751945460299,-460.0,0.00030957,7]
[370307488,1751945460308,-460.0,0.00030957,7]
[370307489,1751945460323,-269.91189115,0.00030957,7]
[370307490,1751945460339,-460.0,0.00030957,7]
[370307491,1751945460349,-405.99,0.00030957,7]
[370307492,1751945460359,-317.99,0.00030957,7]
[370307493,1751945460368,-201.75,0.00030957,7]
[370307494,1751945460378,-460.0,0.00030957,7]
[370307495,1751945460388,-460.0,0.00030957,7]
[370307496,1751945460398,-460.0,0.00030957,7]
[370307497,1751945460409,-523.8,0.00030957,7]
[370307498,1751945460419,-490.0,0.00030957,7]
[370307499,1751945460433,-616.54,0.00030957,7]
[370307500,1751945460443,-460.0,0.00030957,7]
[370307501,1751945460453,-460.0,0.00030957,7]
[370307502,1751945460463,-460.0,0.00030957,7]
[370307503,1751945460475,-583.72927753,0.00030957,7]
[370307504,1751945460484,-460.0,0.00030957,7]
[370307505,1751945460493,-460.0,0.00030957,7]
[370307506,1751945460503,-460.0,0.00030957,7]
[370307507,1751945460512,-460.0,0.00030957,7]
[370307508,1751945460522,-460.0,0.00030957,7]
[370307509,1751945460532,-300.0,0.00030957,10]
[370307510,1751945460542,-460.0,0.00030957,7]
[370307511,1751945460552,-527.67306335,0.00030957,7]
[370307512,1751945460562,-406.58,0.00030957,7]
[370307513,1751945460571,-240.3222736,0.00030957,7]
[370307514,1751945460581,-460.0,0.00030957,7]
[370307515,1751945460591,-300.0,0.00030957,10]
[370307516,1751945460600,-460.0,0.00030957,7]
[370307517,1751945460610,-197.51013826,0.00030957,7]
[370307518,1751945460620,-475.69,0.00030957,7]
[370307519,1751945460630,-586.24,0.00030957,7]
[370307520,1751945460640,-460.0,0.00030957,7]
[370307521,1751945460650,-460.0,0.00030957,7]
[370307522,1751945460660,-175.51126467,0.00030957,7]
[370307523,1751945460671,-460.0,0.00030957,7]
[370307524,1751945460681,-460.0,0.00030957,7]
[370307525,1751945460691,-460.0,0.00030957,7]
[370307526,1751945460700,-443.54,0.00030957,7]
[370307527,1751945460711,-460.0,0.00030957,7]
[370307528,1751945460720,-460.0,0.00030957,7]
[370307529,1751945460731,-300.0,0.00030957,10]
[370307530,1751945460742,-490.0,0.00030957,7]
[370307531,1751945460751,-767.33,0.00030957,7]
[370307532,1751945460762,-460.0,0.00030957,7]
[370307533,1751945460775,-460.0,0.00030957,7]
[370307534,1751945460788,-202.34,0.00030957,7]
[370307535,1751945460800,-460.0,0.00030957,7]
[370307536,1751945460811,-460.0,0.00030957,7]
[370307537,1751945460820,-576.34598061,0.00030957,7]
[370307538,1751945460831,-460.0,0.00030957,7]
[370307539,1751945460842,-1178.76,0.00030957,7]
[370307540,1751945460852,-460.0,0.00030957,7]
[370307541,1751945460862,-704.28,0.00030957,7]
[370307542,1751945460872,-460.0,0.00030957,7]
[370307543,1751945460882,-1645.41,0.00030957,7]
[370307544,1751945460893,-2135.64,0.00030957,7]
[370307545,1751945460905,-460.0,0.00030957,7]
[370307546,1751945460915,-460.0,0.00030957,7]
[370307547,1751945460926,-460.0,0.00030957,7]
[370307548,1751945460937,-460.0,0.00030957,7]
[370307549,1751945460947,-460.0,0.00030957,7]
[370307550,1751945460956,-460.0,0.00030957,7]
[370307551,1751945460967,-460.0,0.00030957,7]
[370307552,1751945460979,-460.0,0.00030957,7]
[370307553,1751945460988,-460.0,0.00030957,7]
[370307554,1751945460998,-721.37,0.00030957,7]
[370307555,1751945461008,-501.91,0.00030957,7]
[370307556,1751945461018,-460.0,0.00030957,7]
[370307557,1751945461029,-460.0,0.00030957,7]
[370307558,1751945461039,-807.73,0.00030957,7]
[370307559,1751945461050,-460.0,0.00030957,7]
[370307560,1751945461060,-460.0,0.00030957,7]
[370307561,1751945461071,-460.0,0.00030957,7]
[370307562,1751945461081,-460.0,0.00030957,7]
[370307563,1751945461092,-460.0,0.00030957,7]
[370307564,1751945461102,-1605.57,0.00030957,7]
[370307565,1751945461113,-547.92,0.00030957,7]
[370307566,1751945461122,-460.0,0.00030957,7]
[370307567,1751945461133,-300.0,0.00030957,7]
[370307568,1751945461143,-460.0,0.00030957,7]
[370307569,1751945461156,-460.0,0.00030957,7]
[370307570,1751945461167,-460.0,0.00030957,7]
[370307571,1751945461177,-151.0,0.00030957,7]
[370307572,1751945461187,-460.0,0.00030957,7]
[370307573,1751945461197,-460.0,0.00030957,7]
[370307574,1751945461207,-463.39,0.00030957,7]
[370307575,1751945461217,-500.0,0.00030957,7]
[370307576,1751945461228,-170.444288,0.00030957,7]
[370307577,1751945461238,-460.0,0.00030957,7]
[370307578,1751945461249,-460.0,0.00030957,7]
[370307579,1751945461259,-864.67,0.00030957,7]
[370307580,1751945461268,-460.0,0.00030957,7]
[370307581,1751945461278,-153.895527,0.00030957,7]
[370307582,1751945461287,-460.0,0.00030957,7]
[370307583,1751945461300,-11888.45673072,0.00030957,7]
[370307584,1751945461669,-460.0,0.00030136,7]
[370307585,1751945461679,-2067.9,0.00030957,7]
[370307586,1751945461711,-1126.05326928,0.00030957,7]
[370307587,1751945461722,-143.75784087,0.00030957,7]
[370307588,1751945462432,-500.0,0.00027397,2]
[370307589,1751945462442,-500.0,0.00027397,2]
[370307590,1751945462451,-500.0,0.00027397,2]
[370307591,1751945462461,-206.83228968,0.00027397,2]
[370307592,1751945462471,-500.0,0.00027397,2]
[370307593,1751945462481,-500.0,0.00027397,2]
[370307594,1751945462491,-500.0,0.00027397,2]
[370307595,1751945462500,-500.0,0.00027397,2]
[370307596,1751945462510,-500.0,0.00027397,2]
[370307597,1751945462519,-500.0,0.00027397,2]
[370307598,1751945462529,-460.0,0.00030136,7]
[370307599,1751945462539,-460.0,0.00030136,7]
[370307600,1751945462549,-460.0,0.00030136,7]
[370307601,1751945462558,-490.0,0.00030136,7]
[370307602,1751945462569,-490.0,0.00030409,7]
[370307603,1751945462578,-490.0,0.00030409,7]
[370307604,1751945462588,-460.0,0.0003041,7]
[370307605,1751945462598,-460.0,0.0003041,7]
[370307606,1751945462608,-460.0,0.0003041,7]
[370307607,1751945462617,-460.0,0.0003041,7]
[370307608,1751945462627,-602.31156923,0.00030684,7]
[370307609,1751945462637,-460.0,0.00030684,7]
[370307610,1751945462647,-316.24215913,0.00030957,7]
[370307611,1751945462658,-158.48847,0.00030957,7]
[370307612,1751945462668,-500.0,0.00030957,7]
[370307613,1751945462678,-151.0,0.00030957,7]
[370307614,1751945462687,-151.0,0.00030957,7]
[370307615,1751945462697,-501.76,0.00030957,7]
[370307616,1751945462708,-158.48847,0.00030957,7]
[370307617,1751945462718,-460.0,0.00030957,7]
[370307618,1751945462729,-1401.44,0.00030957,7]
[370307619,1751945462738,-1697.88,0.00030957,7]
[370307620,1751945462748,-460.0,0.00030958,7]
[370307621,1751945462757,-460.0,0.00030958,7]
[370307622,1751945462767,-460.0,0.00030958,7]
[370307623,1751945462778,-460.0,0.00030958,7]
[370307624,1751945462787,-151.0,0.00030958,7]
[370307625,1751945462797,-460.0,0.00030958,7]
[370307626,1751945462807,-151.0,0.00030958,7]
[370307627,1751945462817,-332.38,0.00030958,7]
[370307628,1751945462827,-460.0,0.00030958,7]
[370307629,1751945462836,-460.0,0.00030958,7]
[370307630,1751945462846,-152.723033,0.00030958,7]
[370307631,1751945462855,-152.449893,0.00030958,7]
[370307632,1751945462864,-460.0,0.00030958,7]
[370307633,1751945462874,-151.0,0.00030958,7]
[370307634,1751945462883,-551.13985103,0.00030958,7]
[370307635,1751945462892,-151.0,0.00030958,7]
[370307636,1751945462902,-151.0,0.00030958,7]
[370307637,1751945462912,-183.16421,0.00030958,7]
[370307638,1751945462922,-151.0,0.00030958,5]
[370307639,1751945462931,-268.29298477,0.00030958,7]
[370307640,1751945462941,-151.0,0.00030958,7]
[370307641,1751945462950,-151.0,0.00030958,7]
[370307642,1751945462960,-151.0,0.00030958,7]
[370307643,1751945462969,-324.62174464,0.00030958,7]
[370307644,1751945462980,-605.67,0.00030958,7]
[370307645,1751945462989,-460.0,0.00030958,7]
[370307646,1751945462999,-460.0,0.00030958,7]
[370307647,1751945463008,-460.0,0.00030958,7]
[370307648,1751945463017,-460.0,0.00030958,7]
[370307649,1751945463026,-786.44,0.00030958,7]
[370307650,1751945463036,-715.27,0.00030958,7]
[370307651,1751945463047,-460.0,0.00030958,7]
[370307652,1751945463056,-460.0,0.00030958,7]
[370307653,1751945463066,-495.49418051,0.00030958,7]
[370307654,1751945463076,-460.0,0.00030958,7]
[370307655,1751945463085,-460.0,0.00030958,7]
[370307656,1751945463094,-460.0,0.00030958,7]
[370307657,1751945463104,-657.88,0.00030958,7]
[370307658,1751945463114,-460.0,0.00030958,7]
[370307659,1751945463123,-460.0,0.00030958,7]
[370307660,1751945463133,-460.0,0.00030958,7]
[370307661,1751945463142,-460.0,0.00030958,7]
[370307662,1751945463153,-460.0,0.00030958,7]
[370307663,1751945463163,-460.0,0.00030958,7]
[370307664,1751945463173,-460.0,0.00030958,7]
[370307665,1751945463182,-645.05,0.00030958,7]
[370307666,1751945463192,-460.0,0.00030958,7]
[370307667,1751945463202,-460.0,0.00030958,7]
[370307668,1751945463211,-460.0,0.00030958,7]
[370307669,1751945463220,-460.0,0.00030958,7]
[370307670,1751945463231,-460.0,0.00030958,7]
[370307671,1751945463241,-460.0,0.00030958,7]
[370307672,1751945463251,-460.0,0.00030958,7]
[370307673,1751945463261,-460.0,0.00030958,7]
[370307674,1751945463271,-460.0,0.00030958,7]
[370307675,1751945463282,-460.0,0.00030958,7]
[370307676,1751945463292,-850.46,0.00030958,7]
[370307677,1751945463302,-460.0,0.00030958,7]
[370307678,1751945463312,-555.12,0.00030958,7]
[370307679,1751945463321,-747.51,0.00030958,7]
[370307680,1751945463331,-460.0,0.00030958,7]
[370307681,1751945463341,-460.0,0.00030958,7]
[370307682,1751945463350,-460.0,0.00030958,7]
[370307683,1751945463360,-460.0,0.00030958,7]
[370307684,1751945463370,-460.0,0.00030958,7]
[370307685,1751945463379,-581.56,0.00030958,7]
[370307686,1751945463389,-777.18,0.00030958,7]
[370307687,1751945463399,-460.0,0.00030958,7]
[370307688,1751945463409,-460.0,0.00030958,7]
[370307689,1751945463419,-460.0,0.00030958,7]
[370307690,1751945463428,-460.0,0.00030958,7]
[370307691,1751945463438,-477.17828164,0.00030958,7]
[370307692,1751945463447,-710.37,0.00030958,7]
[370307693,1751945463457,-460.0,0.00030958,7]
[370307694,1751945463466,-460.0,0.00030958,7]
[370307695,1751945463476,-460.0,0.00030958,7]
[370307696,1751945463487,-460.0,0.00030958,7]
[370307697,1751945463497,-435.0240787,0.00030958,7]
[370307698,1751945463507,-460.0,0.00030958,7]
[370307699,1751945463516,-589.59328995,0.00030958,7]
[370307700,1751945463526,-460.0,0.00030958,7]
[370307701,1751945463536,-546.88,0.00030958,7]
[370307702,1751945463545,-592.1,0.00030958,7]
[370307703,1751945463555,-460.0,0.00030958,7]
[370307704,1751945463565,-204.82652379,0.00030958,7]
[370307705,1751945463575,-460.0,0.00030958,7]
[370307706,1751945463586,-819.6,0.00030958,7]
[370307707,1751945463596,-560.2,0.00030958,7]
[370307708,1751945463605,-460.0,0.00030958,7]
[370307709,1751945463618,-460.0,0.00030958,7]
[370307710,1751945463628,-617.33,0.00030958,7]
[370307711,1751945463637,-1125.96,0.00030958,7]
[370307712,1751945463647,-460.0,0.00030958,7]
[370307713,1751945463657,-897.38,0.00030958,7]
[370307714,1751945463667,-460.0,0.00030958,7]
[370307715,1751945463676,-460.0,0.00030958,7]
[370307716,1751945463687,-678.69,0.00030958,7]
[370307717,1751945463697,-460.0,0.00030958,7]
[370307718,1751945463706,-630.09,0.00030958,7]
[370307719,1751945463716,-460.0,0.00030958,7]
[370307720,1751945463725,-637.51,0.00030958,7]
[370307721,1751945463736,-1142.45,0.00030958,7]
[370307722,1751945463745,-599.31,0.00030958,7]
[370307723,1751945463755,-704.7,0.00030958,7]
[370307724,1751945463764,-643.95,0.00030958,7]
[370307725,1751945463774,-487.03,0.00030958,7]
[370307726,1751945463784,-460.0,0.00030958,7]
[370307727,1751945463794,-460.0,0.00030958,7]
[370307728,1751945463803,-741.32,0.00030958,7]
[370307729,1751945463814,-535.9,0.00030958,7]
[370307730,1751945463823,-460.0,0.00030958,7]
[370307731,1751945463832,-460.0,0.00030958,7]
[370307732,1751945463842,-460.0,0.00030958,7]
[370307733,1751945463851,-460.0,0.00030958,7]
[370307734,1751945463861,-460.0,0.00030958,7]
[370307735,1751945463870,-460.0,0.00030958,7]
[370307736,1751945463879,-460.0,0.00030958,7]
[370307737,1751945463888,-460.0,0.00030958,7]
[370307738,1751945463898,-531.51,0.00030958,7]
[370307739,1751945463907,-694.77,0.00030958,7]
[370307740,1751945463916,-641.57,0.00030958,7]
[370307741,1751945463926,-535.54,0.00030958,7]
[370307742,1751945463936,-672.13,0.00030958,7]
[370307743,1751945463945,-460.0,0.00030958,7]
[370307744,1751945463955,-500.01,0.00030958,7]
[370307745,1751945463964,-583.92,0.00030958,7]
[370307746,1751945463974,-176.80763763,0.00030958,7]
[370307747,1751945463984,-593.22,0.00030958,7]
[370307748,1751945463994,-686.51,0.00030958,7]
[370307749,1751945464004,-460.0,0.00030958,7]
[370307750,1751945464013,-460.0,0.00030958,7]
[370307751,1751945464024,-460.0,0.00030958,7]
[370307752,1751945464034,-215.4,0.00030958,7]
[370307753,1751945464044,-460.0,0.00030958,7]
[370307754,1751945464054,-460.0,0.00030958,7]
[370307755,1751945464064,-686.79,0.00030958,7]
[370307756,1751945464074,-460.0,0.00030958,7]
[370307757,1751945464083,-460.0,0.00030958,7]
[370307758,1751945464093,-460.0,0.00030958,7]
[370307759,1751945464104,-460.0,0.00030958,7]
[370307760,1751945464114,-460.0,0.00030958,7]
[370307761,1751945464124,-460.0,0.00030958,7]
[370307762,1751945464134,-460.0,0.00030958,7]
[370307763,1751945464144,-460.0,0.00030958,7]
[370307764,1751945464156,-694.35,0.00030958,7]
[370307765,1751945464166,-460.0,0.00030958,7]
[370307766,1751945464176,-460.0,0.00030958,7]
[370307767,1751945464186,-757.04,0.00030958,7]
[370307768,1751945464195,-460.0,0.00030958,7]
[370307769,1751945464206,-590.65,0.00030958,7]
[370307770,1751945464216,-1329.96,0.00030958,7]
[370307771,1751945464226,-151.0,0.00030958,7]
[370307772,1751945464236,-585.31,0.00030958,7]
[370307773,1751945464247,-460.0,0.00030958,7]
[370307774,1751945464256,-569.5,0.00030958,7]
[370307775,1751945464266,-515.87,0.00030958,7]
[370307776,1751945464276,-672.65,0.00030958,7]
[370307777,1751945464286,-151.0,0.00030958,7]
[370307778,1751945464295,-460.0,0.00030958,7]
[370307779,1751945464305,-666.81,0.00030958,7]
[370307780,1751945464315,-460.0,0.00030958,7]
[370307781,1751945464325,-460.0,0.00030958,7]
[370307782,1751945464336,-151.0,0.00030958,7]
[370307783,1751945464346,-151.0,0.00030958,7]
[370307784,1751945464356,-151.0,0.00030958,7]
[370307785,1751945464366,-977.41,0.00030958,7]
[370307786,1751945464375,-541.23,0.00030958,7]
[370307787,1751945464386,-732.96,0.00030958,7]
[370307788,1751945464396,-617.19,0.00030958,7]
[370307789,1751945464405,-852.22,0.00030958,7]
[370307790,1751945464415,-460.0,0.00030958,7]
[370307791,1751945464424,-460.0,0.00030958,7]
[370307792,1751945464434,-151.0,0.00030958,7]
[370307793,1751945464499,-460.0,0.00030958,7]
[370307794,1751945464509,-873.77,0.00030958,7]
[370307795,1751945464520,-460.0,0.00030958,7]
[370307796,1751945464530,-669.08,0.00030958,7]
[370307797,1751945464540,-460.0,0.00030958,7]
[370307798,1751945464549,-460.0,0.00030958,7]
[370307799,1751945464559,-460.0,0.00030958,7]
[370307800,1751945464569,-460.0,0.00030958,7]
[370307801,1751945464578,-687.22,0.00030958,7]
[370307802,1751945464588,-1304.98,0.00030958,7]
[370307803,1751945464598,-258.19937194,0.00030958,7]
[370307804,1751945464609,-460.0,0.00030958,7]
[370307805,1751945464619,-1109.25,0.00030958,7]
[370307806,1751945464629,-460.0,0.00030958,7]
[370307807,1751945464638,-384.612349,0.00030958,7]
[370307808,1751945464647,-460.0,0.00030958,7]
[370307809,1751945464658,-349.680046,0.00030958,7]
[370307810,1751945464667,-2650.88,0.00030958,7]
[370307811,1751945464677,-460.0,0.00030958,7]
[370307812,1751945464687,-2976.28,0.00030958,7]
[370307813,1751945464696,-465.45176,0.00030958,7]
[370307814,1751945464706,-1352.42,0.00030958,7]
[370307815,1751945464715,-460.0,0.00030958,7]
[370307816,1751945464725,-954.23,0.00030958,7]
[370307817,1751945464735,-460.0,0.00030958,7]
[370307818,1751945464744,-460.0,0.00030958,7]
[370307819,1751945464754,-517.4,0.00030958,7]
[370307820,1751945464763,-460.0,0.00030958,7]
[370307821,1751945464773,-544.94,0.00030958,7]
[370307822,1751945464783,-460.0,0.00030958,7]
[370307823,1751945464792,-460.0,0.00030958,7]
[370307824,1751945464801,-903.0,0.00030958,7]
[370307825,1751945464811,-460.0,0.00030958,7]
[370307826,1751945464820,-460.0,0.00030958,7]
[370307827,1751945464830,-460.0,0.00030958,7]
[370307828,1751945464839,-460.0,0.00030958,7]
[370307829,1751945464849,-286.554767,0.00030958,7]
[370307830,1751945464858,-460.0,0.00030958,7]
[370307831,1751945464867,-585.49,0.00030958,7]
[370307832,1751945464877,-605.39,0.00030958,7]
[370307833,1751945464886,-286.554767,0.00030958,7]
[370307834,1751945464895,-460.0,0.00030958,7]
[370307835,1751945464905,-1823.7,0.00030958,7]
[370307836,1751945464915,-460.0,0.00030958,7]
[370307837,1751945464925,-739.45,0.00030958,7]
[370307838,1751945464934,-756.0,0.00030958,7]
[370307839,1751945464943,-2017.01,0.00030958,7]
[370307840,1751945464953,-460.0,0.00030958,7]
[370307841,1751945464962,-436.31953519,0.00030958,7]
[370307842,1751945464972,-851.2,0.00030958,7]
[370307843,1751945464981,-460.0,0.00030958,7]
[370307844,1751945464991,-980.57,0.00030958,7]
[370307845,1751945465001,-1389.4,0.00030958,7]
[370307846,1751945465012,-460.0,0.00030958,7]
[370307847,1751945465023,-460.0,0.00030958,7]
[370307848,1751945465033,-460.0,0.00030958,7]
[370307849,1751945465042,-494.72,0.00030958,7]
[370307850,1751945465052,-460.0,0.00030958,7]
[370307851,1751945465062,-1196.75,0.00030958,7]
[370307852,1751945465071,-523.18,0.00030958,7]
[370307853,1751945465081,-460.0,0.00030958,7]
[370307854,1751945465090,-695.63,0.00030958,7]
[370307855,1751945465099,-460.0,0.00030958,7]
[370307856,1751945465109,-1182.73,0.00030958,7]
[370307857,1751945465118,-460.0,0.00030958,7]
[370307858,1751945465129,-460.0,0.00030958,7]
[370307859,1751945465138,-460.0,0.00030958,7]
[370307860,1751945465148,-300.0,0.00030958,2]
[370307861,1751945465163,-460.0,0.00030958,7]